bitfinex/quotes_ETHUSD_20250629
["timestamp","ask_amount","ask_price","bid_price","bid_amount"]
[1751176463681,8.30259835,2435.2,2434.8,0.2048]
[1751176463934,0.3803,2435.0,2434.7,0.55]
[1751176465826,4.48707855,2435.0,2434.7,0.55]
[1751176466032,4.4870985,2435.0,2434.7,0.55]
[1751176466207,4.4870985,2435.0,2434.6,0.55]
[1751176467028,12.58495204,2435.0,2434.6,0.55]
[1751176467230,12.20499197,2434.8,2434.4,0.55]
[1751176467429,12.40979197,2434.8,2434.4,0.55]
[1751176468536,12.40979197,2434.8,2433.9,4.10861205]
[1751176468537,8.09779835,2434.6,2434.0,1.723]
[1751176468743,0.2048,2434.4,2434.1,4.10826587]
[1751176469138,0.2048,2434.4,2434.2,0.55]
[1751176471372,0.2048,2434.4,2434.1,0.55]
[1751176471930,4.48810904,2434.4,2434.1,0.55]
[1751176472135,4.48810904,2434.4,2434.0,4.65845713]
[1751176473068,0.3803,2434.4,2434.0,4.65845713]
[1751176475470,0.3803,2434.4,2434.1,4.10827221]
[1751176475674,0.2048,2434.4,2434.1,4.10827221]
[1751176476199,0.2048,2434.4,2434.2,4.1081157]
[1751176476380,0.2048,2434.4,2434.1,4.10822425]
[1751176491815,0.2048,2434.4,2434.2,4.10811691]
[1751176492411,0.2048,2434.4,2434.1,4.10821029]
[1751176494406,0.2048,2434.4,2434.2,4.10812581]
[1751176495216,0.2048,2434.4,2434.1,4.10819912]
[1751176496339,0.2048,2434.4,2434.2,4.10810272]
[1751176499989,0.2048,2434.4,2434.1,4.10820114]
[1751176501130,0.2048,2434.4,2434.0,11.30237551]
[1751176501434,0.2048,2434.4,2434.1,4.10827179]
[1751176511957,4.31262331,2434.4,2434.0,0.55]
[1751176512156,9.95391224,2434.3,2433.9,11.29662373]
[1751176512331,10.15871224,2434.3,2433.9,11.29662373]
[1751176512534,6.05066807,2434.3,2433.9,11.29662373]
[1751176514869,6.05066807,2434.3,2434.0,4.1084525]
[1751176515271,6.05066807,2434.3,2433.9,11.29654124]
[1751176516374,6.05066807,2434.3,2433.9,4.65854124]
[1751176516662,6.05066807,2434.3,2433.9,11.29554124]
[1751176519877,0.3803,2434.3,2433.9,11.29552455]
[1751176523454,4.48829544,2434.3,2433.9,11.29552455]
[1751176523660,0.3803,2434.3,2433.9,11.29552455]
[1751176525475,4.48827211,2434.3,2433.9,11.29552455]
[1751176527284,4.48827211,2434.3,2433.9,4.65852455]
[1751176527483,4.48827211,2434.3,2433.9,11.28952455]
[1751176529891,0.3803,2434.3,2433.9,0.55]
[1751176530101,0.1755,2434.1,2433.9,0.55]
[1751176530254,0.3803,2434.1,2433.9,0.55]
[1751176530885,0.2048,2434.1,2433.9,4.65856328]
[1751176531178,0.2048,2434.1,2433.9,0.55]
[1751176543287,4.31312891,2434.1,2433.9,0.55]
[1751176543593,0.2048,2434.1,2433.9,0.55]
[1751176546398,4.31310902,2434.1,2433.9,0.55]
[1751176547369,4.28398441,2434.0,2433.6,0.2048]
[1751176547573,4.28398441,2434.0,2433.5,0.002]
[1751176547574,5.67036807,2433.9,2433.5,0.002]
[1751176547797,9.77907876,2433.9,2433.5,0.002]
[1751176547997,10.1755,2434.0,2433.5,0.002]
[1751176548300,10.1755,2434.0,2433.5,4.91103594]
[1751176548301,20.90607062,2434.0,2433.5,4.91103594]
[1751176548495,14.28407062,2434.0,2433.5,4.91103594]
[1751176548811,20.91007062,2434.0,2433.5,4.91103594]
[1751176549003,0.1755,2433.8,2433.5,0.002]
[1751176549304,4.28433925,2433.8,2433.5,0.002]
[1751176552402,0.1755,2433.8,2433.5,0.002]
[1751176553204,4.28433262,2433.8,2433.5,0.002]
[1751176553985,0.1755,2433.8,2433.5,0.002]
[1751176554707,0.1755,2433.8,2433.5,4.11130042]
[1751176555302,16.626,2434.0,2433.7,4.1089615]
[1751176555303,6.624,2434.0,2433.7,4.1089615]
[1751176555503,14.28353173,2434.3,2433.8,4.65869729]
[1751176555704,20.90753173,2434.3,2433.9,0.8145]
[1751176556008,10.1755,2434.3,2433.9,4.92312791]
[1751176556211,10.0,2434.3,2433.9,4.92312791]
[1751176556987,10.0,2434.3,2434.0,4.10846124]
[1751176557495,0.2048,2434.1,2434.0,4.10846124]
[1751176558002,0.2048,2434.1,2433.9,4.92304376]
[1751176559813,0.2048,2434.1,2434.0,4.10846343]
[1751176560676,0.2048,2434.1,2434.0,4.65846343]
[1751176561010,0.2048,2434.3,2434.1,0.55]
[1751176561386,0.2048,2434.3,2434.1,4.65827234]
[1751176564217,0.2048,2434.3,2434.0,4.65836895]
[1751176565694,0.2048,2434.3,2434.1,4.10825974]
[1751176565894,0.2048,2434.3,2434.0,4.65837363]
[1751176566617,0.2048,2434.3,2434.1,4.10826024]
[1751176568724,0.2048,2434.3,2434.0,4.65834045]
[1751176571222,5.87516807,2434.3,2434.0,0.55]
[1751176572030,9.98322909,2434.3,2434.0,0.55]
[1751176574723,0.1755,2434.2,2433.9,0.55]
[1751176576027,0.1755,2434.2,2433.9,4.65861782]
[1751176579732,9.98322909,2434.3,2433.9,4.65861782]
[1751176581633,5.87516807,2434.3,2433.9,4.65861782]
[1751176583332,9.98313114,2434.3,2433.9,4.65861782]
[1751176584933,5.87516807,2434.3,2433.9,4.65861782]
[1751176585304,5.87516807,2434.3,2434.1,0.55]
[1751176585703,5.87516807,2434.3,2433.9,4.65856075]
[1751176587037,9.98313526,2434.3,2433.9,4.65856075]
[1751176587443,9.98313526,2434.3,2433.9,0.55]
[1751176587629,9.98313526,2434.3,2433.9,4.65861756]
[1751176591536,5.87516807,2434.3,2433.9,4.65861756]
[1751176592138,9.9831277,2434.3,2433.9,4.65861756]
[1751176593533,5.87516807,2434.3,2433.9,4.65861756]
[1751176595241,9.98313045,2434.3,2433.9,4.65861756]
[1751176596835,5.87516807,2434.3,2433.9,4.65861756]
[1751176598144,5.87516807,2434.3,2434.1,0.55]
[1751176598346,0.2048,2434.3,2434.1,0.55]
[1751176601138,0.2048,2434.3,2434.0,0.55]
[1751176601653,0.2048,2434.3,2434.0,4.65844036]
[1751176606462,0.2048,2434.3,2434.1,4.10815455]
[1751176606661,0.2048,2434.3,2434.2,0.55]
[1751176611262,0.2048,2434.3,2434.2,4.65812587]
[1751176614165,0.2048,2434.3,2434.1,4.65819524]
[1751176615647,10.1755,2434.8,2434.5,0.55]
[1751176615840,0.2048,2434.7,2434.5,0.55]
[1751176616243,0.2048,2434.7,2434.5,4.65757102]
[1751176616453,0.2048,2434.7,2434.6,4.10745091]
[1751176616777,0.2048,2434.9,2434.7,4.10727381]
[1751176620762,0.2048,2434.9,2434.6,4.65736657]
[1751176621692,0.2048,2434.9,2434.7,4.10726555]
[1751176623282,0.2048,2434.9,2434.8,4.65711352]
[1751176623463,5.67036807,2435.1,2434.8,4.10711352]
[1751176623464,5.87516807,2435.1,2434.8,4.10711352]
[1751176624578,0.2048,2435.1,2434.8,4.87741352]
[1751176625597,0.2048,2435.1,2434.9,4.10692398]
[1751176626095,0.2048,2435.1,2434.8,4.87733012]
[1751176626319,0.2048,2435.1,2434.9,4.1069365]
[1751176627217,0.2048,2435.1,2434.9,4.10694484]
[1751176630782,0.2048,2435.1,2435.0,4.10677618]
[1751176633016,5.84586807,2435.4,2435.0,4.65677618]
[1751176633182,0.2048,2435.2,2435.0,4.65677618]
[1751176634500,0.2048,2435.2,2435.0,0.55]
[1751176634701,5.87516807,2435.2,2435.0,0.55]
[1751176640220,0.2048,2435.2,2435.0,0.55]
[1751176640510,5.87516807,2435.2,2435.0,0.55]
[1751176642620,5.87516807,2435.2,2435.0,4.65672666]
[1751176642621,0.2048,2435.2,2435.0,4.65672666]
[1751176642810,0.2048,2435.2,2435.0,0.55]
[1751176645128,4.31129661,2435.2,2435.0,0.55]
[1751176647542,4.31129661,2435.2,2434.8,4.31181618]
[1751176647543,5.67036807,2435.1,2434.8,0.2048]
[1751176647839,5.67036807,2435.1,2434.9,0.55]
[1751176661351,5.67036807,2435.1,2434.9,4.65693726]
[1751176661555,0.2048,2435.2,2434.9,4.65693726]
[1751176662464,0.2048,2435.2,2434.9,0.55]
[1751176663071,0.2048,2435.2,2434.9,4.65690645]
[1751176663666,0.2048,2435.2,2434.9,0.55]
[1751176664973,0.2048,2435.2,2434.9,4.65692766]
[1751176668983,0.2048,2435.2,2434.9,0.55]
[1751176669339,4.31129283,2435.2,2434.9,0.55]
[1751176672177,0.2048,2435.2,2434.9,0.55]
[1751176673381,0.2048,2435.2,2434.9,4.65693087]
[1751176673580,0.2048,2435.2,2434.9,0.55]
[1751176680990,0.2048,2435.2,2434.9,4.65693784]
[1751176681658,0.2048,2435.2,2434.9,0.55]
[1751176681889,4.31124672,2435.2,2434.9,0.55]
[1751176683106,4.10667597,2435.1,2434.8,0.2048]
[1751176683284,0.2048,2435.0,2434.7,0.55]
[1751176684290,0.2048,2435.0,2434.7,4.65726351]
[1751176693202,5.84586807,2434.9,2434.6,0.2048]
[1751176693497,5.67036807,2434.7,2434.3,4.89266187]
[1751176693676,5.67036807,2434.7,2434.4,0.55]
[1751176693877,4.10718432,2434.8,2434.4,0.55]
[1751176694667,4.10730614,2434.7,2434.4,0.55]
[1751176695098,4.10718061,2434.8,2434.4,0.55]
[1751176696517,4.10729598,2434.7,2434.4,0.55]
[1751176697279,9.77773474,2434.7,2434.2,4.10802702]
[1751176697880,4.28297683,2434.6,2434.2,0.55]
[1751176699112,0.1755,2434.6,2434.2,4.65809524]
[1751176700696,4.28307373,2434.6,2434.2,0.55]
[1751176701408,4.28307373,2434.6,2434.2,4.65812456]
[1751176703106,0.1755,2434.6,2434.2,4.65812456]
[1751176703407,0.2048,2434.4,2434.3,4.10795711]
[1751176703582,0.2048,2434.4,2434.2,4.65803153]
[1751176709116,0.2048,2434.4,2434.3,4.10795711]
[1751176709295,0.1755,2434.9,2434.5,4.10760519]
[1751176709483,0.2048,2434.7,2434.5,4.10760519]
[1751176711901,0.2048,2434.7,2434.6,4.10745091]
[1751176712102,0.2048,2434.7,2434.6,5.45995091]
[1751176712316,0.2048,2434.8,2434.7,4.65725456]
[1751176718389,0.2048,2434.8,2434.7,0.55]
[1751176733545,4.10732223,2434.7,2434.3,4.107873]
[1751176733713,9.7776903,2434.7,2434.3,4.107873]
[1751176733911,0.2048,2434.6,2434.3,4.107873]
[1751176741144,0.2048,2434.6,2434.3,0.55]
[1751176742019,0.2048,2434.6,2434.3,4.65794153]
[1751176744243,0.2048,2434.6,2434.4,4.10775402]
[1751176744417,0.2048,2434.6,2434.5,0.55]
[1751176744619,4.4874507,2434.8,2434.5,0.55]
[1751176745349,0.3803,2434.8,2434.5,0.55]
[1751176745941,0.2048,2434.8,2434.5,0.55]
[1751176746451,4.31191935,2434.8,2434.5,0.55]
[1751176748856,0.2048,2434.8,2434.5,0.55]
[1751176749238,4.31198743,2434.8,2434.5,0.55]
[1751176749454,4.31198743,2434.8,2434.4,0.55]
[1751176750751,4.48748743,2434.8,2434.4,0.55]
[1751176750953,4.10740008,2434.7,2434.4,0.55]
[1751176751747,0.2048,2434.6,2434.4,0.55]
[1751176752126,0.2048,2434.6,2434.3,7.157]
[1751176752328,4.31232991,2434.6,2434.3,0.55]
[1751176752528,0.2048,2434.6,2434.3,7.157]
[1751176753254,4.31230279,2434.6,2434.3,7.157]
[1751176753954,0.2048,2434.6,2434.3,7.157]
[1751176754157,4.31225725,2434.6,2434.3,7.157]
[1751176754338,0.2048,2434.6,2434.3,7.157]
[1751176754943,4.31226568,2434.6,2434.3,7.157]
[1751176755660,0.2048,2434.6,2434.3,7.157]
[1751176756329,4.31227007,2434.6,2434.3,7.157]
[1751176757756,0.2048,2434.6,2434.3,7.157]
[1751176758066,4.31226152,2434.6,2434.3,7.157]
[1751176758659,0.2048,2434.6,2434.3,7.157]
[1751176758845,4.31229247,2434.6,2434.3,7.157]
[1751176760165,0.2048,2434.6,2434.3,7.157]
[1751176764090,0.2048,2434.6,2434.3,0.55]
[1751176767446,0.2048,2434.6,2434.3,4.65794411]
[1751176770038,0.2048,2434.6,2434.3,11.26494411]
[1751176771986,0.2048,2434.6,2434.4,4.10774398]
[1751176774368,0.2048,2434.6,2434.3,11.26485751]
[1751176779384,0.2048,2434.6,2434.4,4.10778647]
[1751176785383,0.2048,2434.6,2434.3,11.26488075]
[1751176786198,0.2048,2434.6,2434.3,4.65795159]
[1751176786490,0.2048,2434.6,2434.3,11.26395159]
[1751176792990,0.2048,2434.6,2434.3,4.65795159]
[1751176793193,0.2048,2434.6,2434.1,4.31304058]
[1751176793194,0.2048,2434.6,2434.2,0.55]
[1751176793393,0.2048,2434.4,2434.3,6.606]
[1751176793594,0.2048,2434.4,2434.2,6.606]
[1751176793998,0.2048,2434.4,2434.2,10.7140169]
[1751176794387,0.2048,2434.4,2434.2,6.606]
[1751176795695,0.2048,2434.4,2434.1,11.26420533]
[1751176800797,0.2048,2434.4,2434.3,4.65795711]
[1751176801001,0.2048,2434.4,2434.3,0.55]
[1751176801195,0.2048,2434.4,2434.3,4.65795711]
[1751176801396,0.2048,2434.4,2434.3,11.26395711]
[1751176803618,0.2048,2434.6,2434.4,4.10769502]
[1751176805706,0.2048,2434.6,2434.5,5.44401963]
[1751176805923,0.2048,2434.7,2434.5,4.89401963]
[1751176806213,0.2048,2434.7,2434.5,11.50001963]
[1751176808923,0.2048,2434.7,2434.6,4.10745091]
[1751176810822,0.2048,2434.7,2434.5,11.49992128]
[1751176813188,0.2048,2434.7,2434.5,7.3924]
[1751176814626,0.2048,2434.7,2434.5,11.50000684]
[1751176817217,0.2048,2434.7,2434.6,4.10745091]
[1751176817417,0.2048,2434.7,2434.5,11.49992603]
[1751176825530,0.2048,2434.7,2434.5,7.3924]
[1751176825834,0.2048,2434.7,2434.5,11.50001722]
[1751176827639,0.2048,2434.7,2434.5,7.3924]
[1751176829634,0.2048,2434.7,2434.5,11.49991775]
[1751176831142,0.2048,2434.7,2434.6,4.10745091]
[1751176835538,0.2048,2434.7,2434.5,11.49992734]
[1751176835746,0.2048,2434.7,2434.6,4.10745091]
[1751176837754,0.2048,2434.7,2434.5,11.49993765]
[1751176839551,0.2048,2434.7,2434.5,7.3924]
[1751176839751,0.2048,2434.7,2434.5,6.606]
[1751176843768,9.98256999,2434.7,2434.3,0.2048]
[1751176844059,0.3803,2434.6,2434.4,0.55]
[1751176846919,5.67036807,2434.5,2434.4,0.55]
[1751176849358,5.67036807,2434.5,2434.3,6.603]
[1751176854180,4.48782927,2434.6,2434.3,6.603]
[1751176855062,0.3803,2434.6,2434.3,6.603]
[1751176855860,0.3803,2434.6,2434.3,10.71095133]
[1751176856063,0.2048,2434.6,2434.3,10.71095133]
[1751176858382,0.2048,2434.6,2434.3,6.603]
[1751176858677,0.2048,2434.6,2434.4,0.7592]
[1751176858880,0.2048,2434.6,2434.4,4.86698211]
[1751176861888,0.2048,2434.6,2434.5,4.10761963]
[1751176862902,0.2048,2434.6,2434.5,4.65761963]
[1751176863049,0.2048,2434.8,2434.6,4.10743333]
[1751176866691,0.2048,2434.8,2434.7,4.10728221]
[1751176866864,0.2048,2434.8,2434.7,4.65728221]
[1751176867671,0.1321304,2435.0,2434.8,4.1070355]
[1751176867866,0.2048,2434.9,2434.8,4.1070355]
[1751176907840,0.2048,2434.9,2434.8,4.6570355]
[1751176916054,0.2048,2434.9,2434.8,0.55]
[1751176918451,0.2048,2434.9,2434.8,4.65711352]
[1751176919051,0.1321304,2435.0,2434.9,4.65694484]
[1751176921865,0.1321304,2435.0,2434.9,5.63372068]
[1751176923835,0.1321304,2435.0,2434.9,12.23172068]
[1751176924839,0.1321304,2435.0,2434.9,12.43652068]
[1751176928275,0.1321304,2435.0,2434.9,13.21182068]
[1751176940770,0.1321304,2435.0,2434.9,13.21082068]
[1751176942789,0.1321304,2435.0,2434.9,6.61382068]
[1751176943083,0.1321304,2435.0,2434.9,11.45874484]
[1751176975120,0.3076304,2435.0,2434.9,0.2048]
[1751176975317,0.3076304,2435.0,2434.8,4.10707295]
[1751176975522,0.3076304,2435.0,2434.7,4.65713046]
[1751176976922,0.1321304,2435.0,2434.8,4.10707142]
[1751176977094,0.1755,2434.9,2434.7,0.55]
[1751176977521,0.1755,2434.9,2434.7,4.65727361]
[1751176978722,0.1755,2434.9,2434.7,0.55]
[1751176979223,0.1755,2434.9,2434.7,7.165]
[1751176979624,0.1755,2434.9,2434.7,11.27227515]
[1751176982133,0.1321304,2435.0,2434.8,4.10711352]
[1751176982292,0.1321304,2435.0,2434.8,4.65705108]
[1751176983525,0.1321304,2435.0,2434.9,11.27094484]
[1751176986936,0.1321304,2435.0,2434.9,12.90953028]
[1751176987103,0.1321304,2435.0,2434.9,13.92523028]
[1751177002843,0.1321304,2435.0,2434.9,15.61023028]
[1751177036294,0.1321304,2435.0,2434.9,21.28059835]
[1751177043812,0.1321304,2435.0,2434.9,31.28059835]
[1751177044600,0.1321304,2435.0,2434.9,35.93059835]
[1751177048017,0.1321304,2435.0,2434.9,21.96123028]
[1751177048174,0.1321304,2435.0,2434.9,35.91159835]
[1751177050103,0.1321304,2435.0,2434.9,30.24123028]
[1751177050295,0.1321304,2435.0,2434.9,35.91159835]
[1751177055995,0.1321304,2435.0,2434.9,30.24123028]
[1751177056197,0.1321304,2435.0,2434.9,35.91159835]
[1751177056629,0.1321304,2435.0,2434.9,38.33119974]
[1751177060922,0.1321304,2435.0,2434.9,33.68119974]
[1751177062998,0.1321304,2435.0,2434.9,32.87029974]
[1751177069654,0.1321304,2435.0,2434.9,16.50033028]
[1751177069948,0.1321304,2435.0,2434.9,12.58474484]
[1751177070132,0.1321304,2435.0,2434.9,23.13474484]
[1751177071237,0.1321304,2435.0,2434.9,16.53874484]
[1751177071431,0.1321304,2435.0,2434.9,23.13474484]
[1751177077248,0.1321304,2435.0,2434.9,6.53874484]
[1751177077451,0.1321304,2435.0,2434.9,13.13574484]
[1751177079670,0.1321304,2435.0,2434.9,4.86174484]
[1751177079847,0.1321304,2435.0,2434.9,13.13674484]
[1751177094684,0.1321304,2435.0,2434.9,6.53974484]
[1751177094884,0.1321304,2435.0,2434.9,13.13674484]
[1751177098686,0.1321304,2435.0,2434.9,4.86174484]
[1751177098687,0.3076304,2435.0,2434.9,4.86174484]
[1751177098877,0.1755,2434.9,2434.4,1.678]
[1751177099077,0.1755,2434.9,2434.7,4.31199207]
[1751177099278,0.1755,2434.9,2434.8,7.147]
[1751177100582,0.1755,2434.9,2434.8,0.55]
[1751177100886,0.1755,2434.9,2434.8,7.147]
[1751177101489,0.1755,2434.9,2434.8,11.25411352]
[1751177102031,0.1755,2434.9,2434.8,4.65711352]
[1751177102192,0.1755,2434.9,2434.8,11.25411352]
[1751177102692,0.1755,2434.9,2434.8,7.147]
[1751177103301,0.1755,2434.9,2434.7,0.2048]
[1751177103488,0.1755,2434.9,2434.7,7.147]
[1751177104888,0.1755,2434.9,2434.7,11.25424956]
[1751177107089,0.1755,2434.9,2434.7,6.598]
[1751177113405,0.1755,2434.9,2434.7,10.70527076]
[1751177113604,0.1755,2434.9,2434.7,6.598]
[1751177114110,0.1755,2434.9,2434.7,10.70528104]
[1751177115316,0.1755,2434.9,2434.7,6.598]
[1751177119331,0.1755,2434.9,2434.7,10.70527866]
[1751177128327,0.3369304,2435.0,2434.9,0.55]
[1751177128328,0.1321304,2435.0,2434.9,0.55]
[1751177129305,0.1321304,2435.0,2434.8,4.65709301]
[1751177136234,0.1321304,2435.0,2434.9,4.65694484]
[1751177164177,0.1321304,2435.0,2434.9,11.25394484]
[1751177164342,0.1321304,2435.0,2434.9,12.88972143]
[1751177167962,0.1321304,2435.0,2434.9,13.71162143]
[1751177186057,0.1321304,2435.0,2434.9,11.25194484]
[1751177187560,0.1755,2434.9,2434.7,10.70227887]
[1751177188475,0.1755,2434.9,2434.7,6.595]
[1751177189303,0.1755,2434.9,2434.7,0.55]
[1751177189981,0.1755,2434.7,2434.5,10.7025634]
[1751177190201,0.1755,2434.7,2434.6,0.55]
[1751177190413,0.1755,2434.7,2434.5,0.55]
[1751177190691,0.1755,2434.7,2434.5,4.65760765]
[1751177191972,0.1755,2434.7,2434.5,0.55]
[1751177196691,0.3803,2434.7,2434.5,0.55]
[1751177199074,0.2048,2434.7,2434.5,4.65756325]
[1751177199281,0.2048,2434.7,2434.6,4.10745091]
[1751177200484,0.2018,2434.7,2434.6,4.10745091]
[1751177215007,0.2018,2434.7,2434.5,4.65753385]
[1751177215912,0.2018,2434.7,2434.4,4.65766522]
[1751177216106,0.2018,2434.7,2434.5,4.10758423]
[1751177219883,0.2018,2434.7,2434.4,4.65769228]
[1751177222015,0.2018,2434.7,2434.5,4.87731692]
[1751177223111,0.2018,2434.7,2434.5,4.10761692]
[1751177223419,0.2018,2434.7,2434.4,11.25370908]
[1751177224220,0.2018,2434.7,2434.4,4.65770908]
[1751177224602,0.2018,2434.7,2434.4,0.55]
[1751177224994,0.2018,2434.7,2434.4,4.65777072]
[1751177226713,0.2018,2434.7,2434.5,4.10759752]
[1751177227416,0.2018,2434.7,2434.4,4.65768871]
[1751177237028,0.2018,2434.7,2434.4,0.55]
[1751177238449,5.86994325,2434.7,2434.4,0.55]
[1751177243840,9.97723881,2434.7,2434.4,0.55]
[1751177244241,4.30909556,2434.7,2434.4,0.55]
[1751177245143,0.2018,2434.7,2434.4,0.55]
[1751177246749,0.2018,2434.7,2434.4,4.65778826]
[1751177247043,0.2018,2434.7,2434.4,0.55]
[1751177250646,0.2018,2434.7,2434.4,4.65776349]
[1751177254749,0.2018,2434.7,2434.4,0.55]
[1751177255530,0.2018,2434.7,2434.4,4.65776476]
[1751177256373,0.2018,2434.7,2434.4,0.55]
[1751177257748,4.3090929,2434.7,2434.4,0.55]
[1751177258251,0.2018,2434.7,2434.4,0.55]
[1751177263775,4.30909119,2434.7,2434.4,0.55]
[1751177267828,4.30912501,2434.7,2434.4,0.55]
[1751177268029,0.2018,2434.7,2434.4,0.55]
[1751177269623,4.30908859,2434.7,2434.4,0.55]
[1751177271665,0.2018,2434.7,2434.4,0.55]
[1751177293182,4.30910518,2434.7,2434.4,0.55]
[1751177293591,0.19769246,2434.7,2434.4,0.55]
[1751177297597,4.30498918,2434.7,2434.4,0.55]
[1751177301996,0.19769246,2434.7,2434.4,0.55]
[1751177313699,4.30498054,2434.7,2434.4,0.55]
[1751177315002,0.19769246,2434.7,2434.4,0.55]
[1751177317104,4.30497727,2434.7,2434.4,0.55]
[1751177317501,0.19769246,2434.7,2434.4,0.55]
[1751177326039,4.30499059,2434.7,2434.4,0.55]
[1751177326533,0.19769246,2434.7,2434.4,0.55]
[1751177327232,0.19769246,2434.7,2434.4,4.65777578]
[1751177328228,0.19769246,2434.7,2434.4,0.55]
[1751177346953,0.19769246,2434.7,2434.4,4.65776212]
[1751177348258,0.19769246,2434.7,2434.4,0.55]
[1751177353062,0.19769246,2434.7,2434.4,4.65776966]
[1751177356566,0.19769246,2434.7,2434.4,0.55]
[1751177360772,4.3051307,2434.7,2434.4,0.55]
[1751177360973,0.19769246,2434.7,2434.4,0.55]
[1751177361542,5.86583571,2434.7,2434.4,0.55]
[1751177364791,5.66814325,2434.5,2434.1,4.10821455]
[1751177364991,0.2048,2434.4,2434.0,4.31324319]
[1751177365194,0.2048,2434.4,2434.1,0.55]
[1751177366301,0.1321304,2435.0,2434.4,0.831]
[1751177366498,10.1321304,2435.0,2434.7,0.55]
[1751177366869,4.2389148,2435.0,2434.7,0.55]
[1751177368275,9.77521847,2434.9,2434.4,4.92510921]
[1751177368478,9.77521847,2434.9,2434.5,4.65760752]
[1751177369903,5.66814325,2434.9,2434.5,4.65760752]
[1751177370897,4.41450349,2435.0,2434.5,4.65760752]
[1751177371070,10.08264674,2435.0,2434.5,4.65760752]
[1751177371270,10.46093047,2435.0,2434.5,4.65760752]
[1751177371472,10.08264674,2435.0,2434.5,4.65760752]
[1751177372706,4.10695286,2434.9,2434.5,4.65760752]
[1751177374099,4.10695286,2434.9,2434.5,0.55]
[1751177376400,0.2048,2434.7,2434.5,0.55]
[1751177381005,0.2048,2434.7,2434.5,4.65757586]
[1751177381210,0.2048,2434.7,2434.5,6.23759781]
[1751177400942,0.2048,2434.7,2434.6,4.10745091]
[1751177401292,0.1321304,2435.0,2434.9,4.10694484]
[1751177401509,0.1321304,2435.0,2434.9,5.48324484]
[1751177409234,0.1321304,2435.0,2434.9,5.68804484]
[1751177409441,0.1321304,2435.0,2434.9,6.66755977]
[1751177429454,0.1321304,2435.0,2434.9,0.2048]
[1751177429673,0.1321304,2435.0,2434.7,6.589]
[1751177429674,0.1321304,2435.0,2434.8,0.55]
[1751177435282,0.1321304,2435.0,2434.8,4.65700422]
[1751177437994,0.1321304,2435.0,2434.9,4.65694484]
[1751177438281,0.1321304,2435.0,2434.9,4.86174484]
[1751177438458,0.1321304,2435.0,2434.9,6.49661824]
[1751177443290,0.1321304,2435.0,2434.9,13.08561824]
[1751177443689,0.1321304,2435.0,2434.9,18.75376149]
[1751177444001,0.1321304,2435.0,2434.9,19.52236149]
[1751177444170,0.1321304,2435.0,2434.9,21.19536149]
[1751177444586,0.1321304,2435.0,2434.9,31.19536149]
[1751177486607,0.1321304,2435.0,2434.9,35.84536149]
[1751177490535,0.1321304,2435.0,2434.9,27.58336149]
[1751177490708,0.1321304,2435.0,2434.9,35.84236149]
[1751177492438,0.1321304,2435.0,2434.9,31.19236149]
[1751177510258,0.1321304,2435.0,2434.9,35.84236149]
[1751177512938,0.1321304,2435.0,2434.9,27.58336149]
[1751177513143,0.1321304,2435.0,2434.9,35.07376149]
[1751177516079,0.1321304,2435.0,2434.9,30.42376149]
[1751177521050,0.1321304,2435.0,2434.9,31.17666149]
[1751177533554,0.1321304,2435.0,2434.9,30.42376149]
[1751177538050,0.1321304,2435.0,2434.9,23.83676149]
[1751177538252,0.1321304,2435.0,2434.9,24.75461824]
[1751177543359,0.1321304,2435.0,2434.9,30.42276149]
[1751177560188,0.1321304,2435.0,2434.9,31.20776149]
[1751177580210,0.1321304,2435.0,2434.9,25.53961824]
[1751177580384,0.1321304,2435.0,2434.9,31.20776149]
[1751177584090,0.1321304,2435.0,2434.9,30.42276149]
[1751177600049,0.1321304,2435.0,2434.9,24.75461824]
[1751177600201,0.1321304,2435.0,2434.9,30.42276149]
[1751177613049,0.1321304,2435.0,2434.9,30.21796149]
[1751177613248,0.1321304,2435.0,2434.9,30.42276149]
[1751177634064,0.1321304,2435.0,2434.9,23.83676149]
[1751177634263,0.1321304,2435.0,2434.9,23.11774484]
[1751177636865,0.1321304,2435.0,2434.9,4.86174484]
[1751177637164,0.1321304,2435.0,2434.9,11.44574484]
[1751177643735,0.1321304,2435.0,2434.9,17.11388809]
[1751177644474,0.1321304,2435.0,2434.9,11.44574484]
[1751177647238,0.1321304,2435.0,2434.9,4.86174484]
[1751177647434,0.1321304,2435.0,2434.9,11.44574484]
[1751177647648,0.1321304,2435.0,2434.9,4.86174484]
[1751177647854,0.1321304,2435.0,2434.9,11.24194484]
[1751177648770,0.1321304,2435.0,2434.9,4.65694484]
[1751177649141,0.1321304,2435.0,2434.9,11.24294484]
[1751177652377,0.1321304,2435.0,2434.9,0.55]
[1751177652625,0.1321304,2435.0,2434.9,7.136]
[1751177653391,0.1321304,2435.0,2434.9,0.55]
[1751177653549,0.1321304,2435.0,2434.9,7.136]
[1751177655442,0.1321304,2435.0,2434.9,0.55]
[1751177659383,0.1321304,2435.0,2434.9,4.65694484]
[1751177660483,0.1321304,2435.0,2434.9,0.55]
[1751177662652,0.1321304,2435.0,2434.9,4.65694484]
[1751177663086,0.1321304,2435.0,2434.9,0.55]
[1751177665186,0.1321304,2435.0,2434.9,4.65694484]
[1751177674801,0.1321304,2435.0,2434.9,0.55]
[1751177677763,0.1321304,2435.0,2434.9,4.65694484]
[1751177678396,0.1321304,2435.0,2434.9,0.55]
[1751177690815,0.1321304,2435.0,2434.9,4.65694484]
[1751177701010,0.1321304,2435.0,2434.9,5.44364484]
[1751177704709,0.1321304,2435.0,2434.9,7.28249985]
[1751177729258,0.1321304,2435.0,2434.9,8.95249985]
[1751177742982,0.1321304,2435.0,2434.9,18.95249985]
[1751177771518,0.1321304,2435.0,2434.9,25.53449985]
[1751177771817,0.1321304,2435.0,2434.9,18.95249985]
[1751177771985,0.1321304,2435.0,2434.9,25.53449985]
[1751177779337,0.1321304,2435.0,2434.9,30.18449985]
[1751177781711,0.1321304,2435.0,2434.9,35.0659431]
[1751177802273,0.1321304,2435.0,2434.9,28.4839431]
[1751177802437,0.1321304,2435.0,2434.9,35.0659431]
[1751177802636,0.1321304,2435.0,2434.9,28.4839431]